[Event "Early-Titled-Tuesday-Blitz-March-19-2024"]
[Site "Chess.com"]
[Date "2024.03.19"]
[Round "4"]
[White "maciek_92"]
[Black "Lion-Al-Messi"]
[Result "1-0"]
[WhiteElo "2893"]
[BlackElo "2621"]
[TimeControl "180+1"]
[EndTime "8:37:06 PDT"]
[Termination "maciek_92 won by resignation"]

1. c4 {[%clk 0:03:00.9]} 1... c5 {[%clk 0:02:59.8]} 2. Nc3 {[%clk 0:03:01.4]}
2... Nc6 {[%clk 0:02:59.8]} 3. g3 {[%clk 0:03:02.2]} 3... g6 {[%clk 0:02:59.9]}
4. Bg2 {[%clk 0:03:03]} 4... Bg7 {[%clk 0:03:00.5]} 5. b3 {[%clk 0:03:03.7]}
5... e6 {[%clk 0:02:58.3]} 6. Bb2 {[%clk 0:03:04.4]} 6... Nge7 {[%clk
0:02:58.2]} 7. e3 {[%clk 0:03:03.3]} 7... O-O {[%clk 0:02:57.9]} 8. Nge2 {[%clk
0:03:02.3]} 8... d6 {[%clk 0:02:57]} 9. O-O {[%clk 0:03:02.1]} 9... Nf5 {[%clk
0:02:55.7]} 10. d3 {[%clk 0:03:00]} 10... Bd7 {[%clk 0:02:55.1]} 11. Qd2 {[%clk
0:03:00.4]} 11... a6 {[%clk 0:02:55.3]} 12. Rac1 {[%clk 0:02:59.9]} 12... Rb8
{[%clk 0:02:55.6]} 13. f4 {[%clk 0:02:54.7]} 13... b5 {[%clk 0:02:55.1]} 14. Ne4
{[%clk 0:02:55.4]} 14... Bxb2 {[%clk 0:02:53]} 15. Qxb2 {[%clk 0:02:55.9]} 15...
f6 {[%clk 0:02:48.3]} 16. Qd2 {[%clk 0:02:51]} 16... Qe7 {[%clk 0:02:45.8]} 17.
N2c3 {[%clk 0:02:48.3]} 17... Rfd8 {[%clk 0:02:27.9]} 18. Qf2 {[%clk 0:02:46.5]}
18... Be8 {[%clk 0:02:25.7]} 19. g4 {[%clk 0:02:45.9]} 19... Ng7 {[%clk
0:02:26.1]} 20. g5 {[%clk 0:02:45]} 20... Nh5 {[%clk 0:02:04.4]} 21. gxf6 {[%clk
0:02:33.3]} 21... Nxf6 {[%clk 0:02:05.3]} 22. Nxf6+ {[%clk 0:02:33.7]} 22...
Qxf6 {[%clk 0:02:05.7]} 23. Ne4 {[%clk 0:02:34.5]} 23... Qe7 {[%clk 0:02:04.3]}
24. Qb2 {[%clk 0:02:34.1]} 24... Qg7 {[%clk 0:02:02.7]} 25. Qf2 {[%clk
0:02:27.2]} 25... Nb4 {[%clk 0:01:58.4]} 26. Qh4 {[%clk 0:02:20.4]} 26... Nxd3
{[%clk 0:01:31.3]} 27. Rcd1 {[%clk 0:02:20.5]} 27... Nb4 {[%clk 0:01:31.3]} 28.
Bh3 {[%clk 0:02:20]} 28... Bf7 {[%clk 0:01:27]} 29. Nxd6 {[%clk 0:02:13.1]}
29... bxc4 {[%clk 0:01:07.3]} 30. Nxf7 {[%clk 0:02:12.6]} 30... Rxd1 {[%clk
0:01:06.7]} 31. Nh6+ {[%clk 0:02:12.7]} 31... Qxh6 {[%clk 0:00:53.7]} 32. Qxh6
{[%clk 0:02:13.6]} 32... Rxf1+ {[%clk 0:00:53.3]} 33. Kxf1 {[%clk 0:02:14.5]}
33... c3 {[%clk 0:00:51.9]} 34. Bxe6+ {[%clk 0:02:14.4]} 34... Kh8 {[%clk
0:00:52.1]} 35. Qg5 {[%clk 0:02:15.1]} 1-0

[Event "Early-Titled-Tuesday-Blitz-March-19-2024"]
[Site "Chess.com"]
[Date "2024.03.19"]
[Round "4"]
[White "stollenmonster"]
[Black "nihalsarin"]
[Result "0-1"]
[WhiteElo "2917"]
[BlackElo "3179"]
[TimeControl "180+1"]
[EndTime "8:37:09 PDT"]
[Termination "nihalsarin won by resignation"]

1. e4 {[%clk 0:03:00.9]} 1... a6 {[%clk 0:03:00.9]} 2. g3 {[%clk 0:02:58.6]}
2... d5 {[%clk 0:02:58.8]} 3. Bg2 {[%clk 0:02:58.3]} 3... dxe4 {[%clk
0:02:54.4]} 4. Bxe4 {[%clk 0:02:58.3]} 4... Nf6 {[%clk 0:02:55]} 5. Bg2 {[%clk
0:02:57.6]} 5... e5 {[%clk 0:02:52.3]} 6. Nc3 {[%clk 0:02:56.6]} 6... Nc6 {[%clk
0:02:51.3]} 7. h3 {[%clk 0:02:56.1]} 7... Bf5 {[%clk 0:02:46.7]} 8. d3 {[%clk
0:02:56.3]} 8... h6 {[%clk 0:02:47.2]} 9. Nge2 {[%clk 0:02:55.6]} 9... Bd6
{[%clk 0:02:41.3]} 10. g4 {[%clk 0:02:53.8]} 10... Be6 {[%clk 0:02:35]} 11. f4
{[%clk 0:02:50.9]} 11... exf4 {[%clk 0:02:34.1]} 12. Nxf4 {[%clk 0:02:51.5]}
12... Bd7 {[%clk 0:02:07.9]} 13. O-O {[%clk 0:02:49.3]} 13... O-O {[%clk
0:02:07.8]} 14. Ne4 {[%clk 0:02:46.8]} 14... Nxe4 {[%clk 0:02:07.2]} 15. Bxe4
{[%clk 0:02:46.9]} 15... f5 {[%clk 0:02:00.4]} 16. Bd5+ {[%clk 0:02:01.6]} 16...
Kh7 {[%clk 0:01:58.8]} 17. g5 {[%clk 0:02:00.6]} 17... Qxg5+ {[%clk 0:01:51.5]}
18. Kh1 {[%clk 0:02:00.7]} 18... Qh4 {[%clk 0:01:45.7]} 19. Qf3 {[%clk
0:02:00.4]} 19... Nd4 {[%clk 0:01:18.7]} 20. Qg2 {[%clk 0:01:44.3]} 20... g5
{[%clk 0:01:18.3]} 21. c3 {[%clk 0:01:39.1]} 21... gxf4 {[%clk 0:01:15.1]} 22.
cxd4 {[%clk 0:01:39.3]} 22... Rg8 {[%clk 0:01:15.8]} 23. Qh2 {[%clk 0:01:35.5]}
23... f3 {[%clk 0:01:10.8]} 0-1

[Event "Early-Titled-Tuesday-Blitz-March-19-2024"]
[Site "Chess.com"]
[Date "2024.03.19"]
[Round "4"]
[White "picturesquecheck"]
[Black "fandebobbyfischer"]
[Result "0-1"]
[WhiteElo "2434"]
[BlackElo "2691"]
[TimeControl "180+1"]
[EndTime "8:37:12 PDT"]
[Termination "fandebobbyfischer won by resignation"]

1. e4 {[%clk 0:03:00.9]} 1... e6 {[%clk 0:02:59.8]} 2. d4 {[%clk 0:02:59.3]}
2... d5 {[%clk 0:03:00.2]} 3. Nc3 {[%clk 0:02:55.9]} 3... Bb4 {[%clk 0:03:00.7]}
4. exd5 {[%clk 0:02:56]} 4... exd5 {[%clk 0:02:58.8]} 5. Bd3 {[%clk 0:02:56.2]}
5... Nf6 {[%clk 0:02:58.1]} 6. Ne2 {[%clk 0:02:56.3]} 6... O-O {[%clk
0:02:57.6]} 7. O-O {[%clk 0:02:54.1]} 7... h6 {[%clk 0:02:58.1]} 8. h3 {[%clk
0:02:47.8]} 8... c5 {[%clk 0:02:55.8]} 9. dxc5 {[%clk 0:02:41.3]} 9... Bxc5
{[%clk 0:02:56.7]} 10. Bf4 {[%clk 0:02:40.2]} 10... Nc6 {[%clk 0:02:56.2]} 11.
Bh2 {[%clk 0:02:38.6]} 11... a6 {[%clk 0:02:50.2]} 12. Nf4 {[%clk 0:02:38.7]}
12... Bd4 {[%clk 0:02:06.2]} 13. Be2 {[%clk 0:02:22]} 13... Bxc3 {[%clk
0:02:03.4]} 14. bxc3 {[%clk 0:02:21.7]} 14... Qa5 {[%clk 0:02:04]} 15. Bf3
{[%clk 0:02:20]} 15... Be6 {[%clk 0:01:54.6]} 16. Ne2 {[%clk 0:02:19.5]} 16...
Ne4 {[%clk 0:01:44.9]} 17. Qd3 {[%clk 0:02:15.8]} 17... Rfe8 {[%clk 0:01:35.2]}
18. Rfd1 {[%clk 0:02:12.5]} 18... Qc5 {[%clk 0:01:25.4]} 19. Nd4 {[%clk
0:02:07]} 19... Nxc3 {[%clk 0:01:09.8]} 20. Nxe6 {[%clk 0:01:49.8]} 20... Rxe6
{[%clk 0:00:59.6]} 21. Bxd5 {[%clk 0:01:30.8]} 21... Nxd5 {[%clk 0:00:59.3]} 22.
Qxd5 {[%clk 0:01:30.9]} 22... Re1+ {[%clk 0:00:59.4]} 0-1

[Event "Early-Titled-Tuesday-Blitz-March-19-2024"]
[Site "Chess.com"]
[Date "2024.03.19"]
[Round "4"]
[White "MetiForce"]
[Black "nikitakhoroshev"]
[Result "1-0"]
[WhiteElo "2922"]
[BlackElo "2692"]
[TimeControl "180+1"]
[EndTime "8:37:23 PDT"]
[Termination "MetiForce won by resignation"]

1. c4 {[%clk 0:03:00.3]} 1... Nf6 {[%clk 0:02:56.9]} 2. Nc3 {[%clk 0:02:59.8]}
2... g6 {[%clk 0:02:53]} 3. e4 {[%clk 0:02:59.9]} 3... d6 {[%clk 0:02:51.4]} 4.
d4 {[%clk 0:03:00.3]} 4... Bg7 {[%clk 0:02:51.3]} 5. Be2 {[%clk 0:03:01]} 5...
O-O {[%clk 0:02:50.1]} 6. Be3 {[%clk 0:03:01.3]} 6... e5 {[%clk 0:02:48.1]} 7.
d5 {[%clk 0:03:00.3]} 7... Na6 {[%clk 0:02:44.7]} 8. h4 {[%clk 0:02:51.6]} 8...
h5 {[%clk 0:02:41.6]} 9. f3 {[%clk 0:02:41]} 9... Nc5 {[%clk 0:02:34.9]} 10. Nh3
{[%clk 0:02:40.9]} 10... Nh7 {[%clk 0:02:29.1]} 11. Ng5 {[%clk 0:02:36.2]} 11...
f5 {[%clk 0:02:20.6]} 12. exf5 {[%clk 0:02:32.5]} 12... Bxf5 {[%clk 0:02:11.1]}
13. g4 {[%clk 0:02:29.7]} 13... hxg4 {[%clk 0:01:47.8]} 14. fxg4 {[%clk
0:02:30.6]} 14... Nxg5 {[%clk 0:01:47.2]} 15. Bxg5 {[%clk 0:02:28.9]} 15... Qd7
{[%clk 0:01:36.9]} 16. gxf5 {[%clk 0:02:20.8]} 16... Qxf5 {[%clk 0:01:37]} 17.
Qd2 {[%clk 0:02:16.6]} 17... e4 {[%clk 0:01:36.8]} 18. O-O-O {[%clk 0:02:09.1]}
18... Rae8 {[%clk 0:01:33.1]} 19. Rdf1 {[%clk 0:02:06.1]} 19... Qe5 {[%clk
0:01:31.6]} 20. Rxf8+ {[%clk 0:02:04.2]} 20... Rxf8 {[%clk 0:01:31.7]} 21. Rf1
{[%clk 0:02:04.2]} 21... Re8 {[%clk 0:01:30.2]} 22. Qf4 {[%clk 0:01:57.8]} 22...
Rf8 {[%clk 0:00:59.7]} 23. Qxe5 {[%clk 0:01:56.3]} 23... Rxf1+ {[%clk
0:00:57.8]} 24. Bxf1 {[%clk 0:01:57.2]} 24... Bxe5 {[%clk 0:00:58]} 25. Be3
{[%clk 0:01:53.9]} 25... Nd7 {[%clk 0:00:51.6]} 26. Nxe4 {[%clk 0:01:52.2]}
26... Kg7 {[%clk 0:00:50.5]} 27. Bh3 {[%clk 0:01:52.1]} 27... Nb6 {[%clk
0:00:47.1]} 28. Bxb6 {[%clk 0:01:50.7]} 28... axb6 {[%clk 0:00:48]} 29. Ng5
{[%clk 0:01:48]} 1-0

[Event "Early-Titled-Tuesday-Blitz-March-19-2024"]
[Site "Chess.com"]
[Date "2024.03.19"]
[Round "4"]
[White "MagnusCarlsen"]
[Black "PLAYER_2006_M"]
[Result "1-0"]
[WhiteElo "3269"]
[BlackElo "2933"]
[TimeControl "180+1"]
[EndTime "8:37:40 PDT"]
[Termination "MagnusCarlsen won by resignation"]

1. b4 {[%clk 0:02:59]} 1... Nf6 {[%clk 0:02:53.2]} 2. Bb2 {[%clk 0:02:59.1]}
2... g6 {[%clk 0:02:54]} 3. g3 {[%clk 0:02:58.9]} 3... Bg7 {[%clk 0:02:53.5]} 4.
Bg2 {[%clk 0:02:59.5]} 4... O-O {[%clk 0:02:54.2]} 5. Nf3 {[%clk 0:02:58.3]}
5... d6 {[%clk 0:02:54.8]} 6. d4 {[%clk 0:02:58.4]} 6... a5 {[%clk 0:02:45.8]}
7. b5 {[%clk 0:02:58.2]} 7... c6 {[%clk 0:02:45.9]} 8. a4 {[%clk 0:02:55.2]}
8... cxb5 {[%clk 0:02:31]} 9. axb5 {[%clk 0:02:54.5]} 9... Nbd7 {[%clk
0:02:30.7]} 10. c4 {[%clk 0:02:53]} 10... Rb8 {[%clk 0:02:15]} 11. O-O {[%clk
0:02:52]} 11... b6 {[%clk 0:02:15.4]} 12. d5 {[%clk 0:02:48]} 12... Bb7 {[%clk
0:02:11.7]} 13. Nd4 {[%clk 0:02:47.1]} 13... Ne5 {[%clk 0:02:07.4]} 14. Qc2
{[%clk 0:02:40.4]} 14... Qc7 {[%clk 0:02:01.1]} 15. Nc6 {[%clk 0:02:38.9]} 15...
Rbe8 {[%clk 0:02:00.5]} 16. Bxe5 {[%clk 0:02:34.7]} 16... dxe5 {[%clk
0:01:59.7]} 17. Nc3 {[%clk 0:02:35.3]} 17... Nd7 {[%clk 0:01:57.6]} 18. Rfd1
{[%clk 0:02:13.6]} 18... Kh8 {[%clk 0:01:38.1]} 19. Na4 {[%clk 0:02:05.4]} 19...
e4 {[%clk 0:01:21.7]} 20. Rac1 {[%clk 0:02:03]} 20... f5 {[%clk 0:01:04.7]} 21.
Nxe7 {[%clk 0:02:02.9]} 21... Qd6 {[%clk 0:01:00.3]} 22. Nc6 {[%clk 0:02:01]}
22... Qa3 {[%clk 0:00:56.6]} 23. e3 {[%clk 0:01:57.1]} 23... h5 {[%clk 0:00:44]}
24. c5 {[%clk 0:01:52.4]} 24... Nxc5 {[%clk 0:00:43.8]} 25. Nxc5 {[%clk
0:01:51.7]} 25... bxc5 {[%clk 0:00:44.4]} 26. Qxc5 {[%clk 0:01:52.5]} 26... Qxc5
{[%clk 0:00:45.1]} 27. Rxc5 {[%clk 0:01:53]} 27... a4 {[%clk 0:00:45.4]} 28. d6
{[%clk 0:01:51.6]} 28... a3 {[%clk 0:00:41]} 29. d7 {[%clk 0:01:51.8]} 29... a2
{[%clk 0:00:41.1]} 30. dxe8=Q {[%clk 0:01:50]} 30... Rxe8 {[%clk 0:00:40.9]} 31.
Nd4 {[%clk 0:01:48.4]} 31... Ra8 {[%clk 0:00:39.2]} 32. Ra1 {[%clk 0:01:48.1]}
1-0

[Event "Early-Titled-Tuesday-Blitz-March-19-2024"]
[Site "Chess.com"]
[Date "2024.03.19"]
[Round "4"]
[White "Arystanner"]
[Black "Oleksandr_Bortnyk"]
[Result "0-1"]
[WhiteElo "2838"]
[BlackElo "3049"]
[TimeControl "180+1"]
[EndTime "8:37:44 PDT"]
[Termination "Oleksandr_Bortnyk won by resignation"]

1. e4 {[%clk 0:02:56.4]} 1... Nf6 {[%clk 0:02:58.2]} 2. e5 {[%clk 0:02:56.5]}
2... Nd5 {[%clk 0:02:51.9]} 3. d4 {[%clk 0:02:57.1]} 3... d6 {[%clk 0:02:50.4]}
4. c4 {[%clk 0:02:57.4]} 4... Nb6 {[%clk 0:02:50.5]} 5. exd6 {[%clk 0:02:57.9]}
5... exd6 {[%clk 0:02:51.4]} 6. h3 {[%clk 0:02:56.9]} 6... Be7 {[%clk
0:02:51.4]} 7. Nf3 {[%clk 0:02:57]} 7... O-O {[%clk 0:02:49.3]} 8. Be2 {[%clk
0:02:55.5]} 8... Bf5 {[%clk 0:02:44.8]} 9. O-O {[%clk 0:02:54.8]} 9... Re8
{[%clk 0:02:43.7]} 10. Nc3 {[%clk 0:02:55]} 10... Bf6 {[%clk 0:02:37.1]} 11. Bf4
{[%clk 0:02:53]} 11... Nc6 {[%clk 0:02:35.8]} 12. Re1 {[%clk 0:02:47.1]} 12...
h6 {[%clk 0:02:34]} 13. b3 {[%clk 0:02:33.4]} 13... a5 {[%clk 0:02:23.8]} 14.
Qd2 {[%clk 0:02:31.9]} 14... a4 {[%clk 0:02:16.1]} 15. Bf1 {[%clk 0:02:25.7]}
15... axb3 {[%clk 0:02:13.8]} 16. axb3 {[%clk 0:02:25.6]} 16... Rxe1 {[%clk
0:01:46.1]} 17. Rxe1 {[%clk 0:02:22.5]} 17... Ra3 {[%clk 0:01:46.4]} 18. Qb2
{[%clk 0:02:03.6]} 18... Ra8 {[%clk 0:01:43.8]} 19. Qd2 {[%clk 0:01:58]} 19...
Qd7 {[%clk 0:01:25.9]} 20. c5 {[%clk 0:01:52.4]} 20... dxc5 {[%clk 0:01:21.2]}
21. dxc5 {[%clk 0:01:47.1]} 21... Qxd2 {[%clk 0:01:21.3]} 22. Bxd2 {[%clk
0:01:48]} 22... Nd7 {[%clk 0:01:20.7]} 23. Nd5 {[%clk 0:01:47]} 23... Nxc5
{[%clk 0:01:10.4]} 24. Nxf6+ {[%clk 0:01:40.2]} 24... gxf6 {[%clk 0:01:11.3]}
25. b4 {[%clk 0:01:40.8]} 25... Nd3 {[%clk 0:01:03.2]} 26. b5 {[%clk 0:01:12.9]}
26... Nxe1 {[%clk 0:01:01.5]} 27. bxc6 {[%clk 0:01:12.7]} 27... Nxf3+ {[%clk
0:01:01]} 28. gxf3 {[%clk 0:01:08.2]} 28... bxc6 {[%clk 0:01:01.3]} 29. Bxh6
{[%clk 0:01:08.3]} 29... Ra1 {[%clk 0:01:01.1]} 0-1

[Event "Early-Titled-Tuesday-Blitz-March-19-2024"]
[Site "Chess.com"]
[Date "2024.03.19"]
[Round "4"]
[White "djano"]
[Black "Zohid6"]
[Result "1-0"]
[WhiteElo "2634"]
[BlackElo "2864"]
[TimeControl "180+1"]
[EndTime "8:37:52 PDT"]
[Termination "djano won by resignation"]

1. e4 {[%clk 0:03:00.9]} 1... e5 {[%clk 0:02:59.7]} 2. Nf3 {[%clk 0:03:00.2]}
2... Nf6 {[%clk 0:03:00.2]} 3. d4 {[%clk 0:03:00]} 3... Nxe4 {[%clk 0:02:59.2]}
4. Bd3 {[%clk 0:02:59.6]} 4... Nc6 {[%clk 0:02:58.9]} 5. dxe5 {[%clk 0:02:53.3]}
5... d5 {[%clk 0:02:58.2]} 6. exd6 {[%clk 0:02:49.8]} 6... Nxd6 {[%clk
0:02:57.1]} 7. O-O {[%clk 0:02:49.2]} 7... Be7 {[%clk 0:02:57.1]} 8. Bf4 {[%clk
0:02:44.3]} 8... O-O {[%clk 0:02:55.1]} 9. h3 {[%clk 0:02:44.3]} 9... Nb4 {[%clk
0:02:44.7]} 10. Be2 {[%clk 0:02:26.1]} 10... Bf5 {[%clk 0:02:44.1]} 11. Nd4
{[%clk 0:02:24.7]} 11... Bg6 {[%clk 0:02:42.6]} 12. a3 {[%clk 0:02:21.2]} 12...
Nd5 {[%clk 0:02:41.4]} 13. Bh2 {[%clk 0:02:20.1]} 13... Bf6 {[%clk 0:02:40.2]}
14. c3 {[%clk 0:02:13.8]} 14... Re8 {[%clk 0:02:29.4]} 15. Nd2 {[%clk
0:02:13.1]} 15... a6 {[%clk 0:02:13.4]} 16. Bf3 {[%clk 0:02:12.1]} 16... c6
{[%clk 0:02:10.3]} 17. Re1 {[%clk 0:02:11.6]} 17... Qd7 {[%clk 0:02:05.6]} 18.
Qb3 {[%clk 0:01:55.6]} 18... b5 {[%clk 0:01:47.8]} 19. Nxc6 {[%clk 0:01:55.7]}
19... Qxc6 {[%clk 0:01:07.9]} 20. Bxd5 {[%clk 0:01:54.8]} 20... Qc5 {[%clk
0:01:08.6]} 21. Bxa8 {[%clk 0:01:49.4]} 21... Rxa8 {[%clk 0:01:09.5]} 22. Bxd6
{[%clk 0:01:47.1]} 22... Qxd6 {[%clk 0:01:09.1]} 23. Ne4 {[%clk 0:01:47.4]}
23... Bxe4 {[%clk 0:01:08.7]} 24. Rxe4 {[%clk 0:01:48.3]} 24... h5 {[%clk
0:01:05.1]} 25. Rd1 {[%clk 0:01:47.8]} 25... Qb6 {[%clk 0:01:04.9]} 26. Rd7
{[%clk 0:01:39.3]} 26... Rf8 {[%clk 0:01:01.2]} 27. Re8 {[%clk 0:01:34.7]} 27...
Rxe8 {[%clk 0:00:46.9]} 28. Qxf7+ {[%clk 0:01:34.2]} 28... Kh7 {[%clk
0:00:47.8]} 29. Qxh5+ {[%clk 0:01:34.8]} 29... Kg8 {[%clk 0:00:48]} 30. Qxe8+
{[%clk 0:01:34.3]} 30... Kh7 {[%clk 0:00:48.9]} 31. Qe4+ {[%clk 0:01:31.8]}
31... Kg8 {[%clk 0:00:46.5]} 32. Qd5+ {[%clk 0:01:31.2]} 32... Kh7 {[%clk
0:00:45.5]} 33. Qd6 {[%clk 0:01:29.6]} 1-0

[Event "Early-Titled-Tuesday-Blitz-March-19-2024"]
[Site "Chess.com"]
[Date "2024.03.19"]
[Round "4"]
[White "SamCopeland"]
[Black "cthake"]
[Result "1-0"]
[WhiteElo "2367"]
[BlackElo "1796"]
[TimeControl "180+1"]
[EndTime "8:38:03 PDT"]
[Termination "SamCopeland won by resignation"]

1. e4 {[%clk 0:03:00.9]} 1... e6 {[%clk 0:02:59.5]} 2. d4 {[%clk 0:02:55.9]}
2... d5 {[%clk 0:02:59.2]} 3. e5 {[%clk 0:02:53.6]} 3... c5 {[%clk 0:02:58]} 4.
c3 {[%clk 0:02:52.8]} 4... Nc6 {[%clk 0:02:57.4]} 5. Nf3 {[%clk 0:02:52.5]} 5...
Bd7 {[%clk 0:02:57.1]} 6. Bd3 {[%clk 0:02:48.4]} 6... cxd4 {[%clk 0:02:56.6]} 7.
O-O {[%clk 0:02:47.1]} 7... Rc8 {[%clk 0:02:35.1]} 8. Re1 {[%clk 0:02:42.1]}
8... dxc3 {[%clk 0:02:33.3]} 9. bxc3 {[%clk 0:02:30.2]} 9... Nge7 {[%clk
0:02:28.8]} 10. h4 {[%clk 0:02:26.2]} 10... h6 {[%clk 0:02:18.1]} 11. h5 {[%clk
0:02:21.4]} 11... Na5 {[%clk 0:02:15.9]} 12. Ba3 {[%clk 0:02:03.5]} 12... Nc4
{[%clk 0:02:07.6]} 13. Qb3 {[%clk 0:01:32.6]} 13... Nxa3 {[%clk 0:02:05.1]} 14.
Nxa3 {[%clk 0:01:33.5]} 14... b6 {[%clk 0:02:01.5]} 15. Nb5 {[%clk 0:01:26.3]}
15... Bxb5 {[%clk 0:01:50.4]} 16. Bxb5+ {[%clk 0:01:24.7]} 16... Nc6 {[%clk
0:01:50.5]} 17. Qa4 {[%clk 0:01:22.6]} 17... Qc7 {[%clk 0:01:40]} 18. Nd4 {[%clk
0:01:21.7]} 18... Kd7 {[%clk 0:01:37.4]} 19. Nxc6 {[%clk 0:01:19.9]} 19... a6
{[%clk 0:01:34.1]} 20. Nb8+ {[%clk 0:00:57.9]} 20... Kd8 {[%clk 0:01:31.5]} 21.
Nxa6 {[%clk 0:00:56.9]} 21... Qa7 {[%clk 0:01:20.3]} 22. c4 {[%clk 0:00:52.4]}
22... Bc5 {[%clk 0:01:05.8]} 23. cxd5 {[%clk 0:00:50.4]} 23... exd5 {[%clk
0:01:04.5]} 24. Nxc5 {[%clk 0:00:42.3]} 24... Qxa4 {[%clk 0:01:02.3]} 25. Nxa4
{[%clk 0:00:43.2]} 25... Rc2 {[%clk 0:00:57.5]} 1-0

[Event "Early-Titled-Tuesday-Blitz-March-19-2024"]
[Site "Chess.com"]
[Date "2024.03.19"]
[Round "4"]
[White "gpsji27"]
[Black "Aradhya2000"]
[Result "0-1"]
[WhiteElo "2362"]
[BlackElo "2710"]
[TimeControl "180+1"]
[EndTime "8:38:04 PDT"]
[Termination "Aradhya2000 won by resignation"]

1. d4 {[%clk 0:03:00.9]} 1... d5 {[%clk 0:02:58.4]} 2. Nf3 {[%clk 0:02:56.6]}
2... Nf6 {[%clk 0:02:58.4]} 3. Bg5 {[%clk 0:02:55.1]} 3... Ne4 {[%clk 0:02:58]}
4. Bh4 {[%clk 0:02:54]} 4... c5 {[%clk 0:02:57.7]} 5. e3 {[%clk 0:02:53.5]} 5...
Nc6 {[%clk 0:02:55.5]} 6. Nbd2 {[%clk 0:02:42.4]} 6... Bg4 {[%clk 0:02:52.7]} 7.
c3 {[%clk 0:02:29.2]} 7... f6 {[%clk 0:02:47.9]} 8. h3 {[%clk 0:02:28]} 8... Bh5
{[%clk 0:02:43.8]} 9. Bd3 {[%clk 0:02:22.9]} 9... g5 {[%clk 0:02:41.7]} 10. Bg3
{[%clk 0:02:18.8]} 10... Nxg3 {[%clk 0:02:40.9]} 11. fxg3 {[%clk 0:02:18.5]}
11... Bg7 {[%clk 0:02:38.5]} 12. dxc5 {[%clk 0:02:01.4]} 12... Qc7 {[%clk
0:02:30.3]} 13. g4 {[%clk 0:01:52.7]} 13... Qg3+ {[%clk 0:02:27.2]} 14. Kf1
{[%clk 0:01:53.1]} 14... Bg6 {[%clk 0:02:27.7]} 15. Bxg6+ {[%clk 0:01:48.9]}
15... hxg6 {[%clk 0:02:28.6]} 16. Qe1 {[%clk 0:01:49.6]} 16... Qc7 {[%clk
0:02:28]} 17. e4 {[%clk 0:01:48.3]} 17... O-O-O {[%clk 0:02:20.5]} 18. Rd1
{[%clk 0:01:44.8]} 18... d4 {[%clk 0:02:18.8]} 19. cxd4 {[%clk 0:01:39.5]} 19...
Nxd4 {[%clk 0:02:19.1]} 20. Nxd4 {[%clk 0:01:15.6]} 20... Rxd4 {[%clk 0:02:20]}
21. Nb3 {[%clk 0:01:15.9]} 21... Qf4+ {[%clk 0:02:18.8]} 22. Kg1 {[%clk
0:01:14.9]} 22... Rxe4 {[%clk 0:02:19]} 23. Qd2 {[%clk 0:01:07.5]} 23... Qxd2
{[%clk 0:02:05.8]} 24. Rxd2 {[%clk 0:01:03.8]} 24... f5 {[%clk 0:02:05.7]} 25.
gxf5 {[%clk 0:01:01.8]} 25... gxf5 {[%clk 0:02:05.8]} 26. Kf2 {[%clk 0:01:00.9]}
26... g4 {[%clk 0:02:04.8]} 27. h4 {[%clk 0:00:53.7]} 27... Be5 {[%clk
0:01:50.7]} 28. g3 {[%clk 0:00:47.1]} 28... f4 {[%clk 0:01:50.7]} 29. gxf4
{[%clk 0:00:33.3]} 29... Bxf4 {[%clk 0:01:50.7]} 30. Re2 {[%clk 0:00:32.5]}
30... Bg3+ {[%clk 0:01:49.8]} 31. Kxg3 {[%clk 0:00:27.4]} 31... Rxe2 {[%clk
0:01:49.6]} 32. Kxg4 {[%clk 0:00:18.5]} 32... Rxb2 {[%clk 0:01:49.2]} 0-1

[Event "Early-Titled-Tuesday-Blitz-March-19-2024"]
[Site "Chess.com"]
[Date "2024.03.19"]
[Round "4"]
[White "gorgeous1083"]
[Black "javierfreilemartin"]
[Result "0-1"]
[WhiteElo "2065"]
[BlackElo "2303"]
[TimeControl "180+1"]
[EndTime "8:38:05 PDT"]
[Termination "javierfreilemartin won on time"]

1. d4 {[%clk 0:03:00.9]} 1... Nf6 {[%clk 0:02:59]} 2. c4 {[%clk 0:03:01.4]} 2...
g6 {[%clk 0:02:58.1]} 3. Nf3 {[%clk 0:03:02]} 3... Bg7 {[%clk 0:02:58.1]} 4. Nc3
{[%clk 0:03:02.5]} 4... d6 {[%clk 0:02:58.3]} 5. e4 {[%clk 0:03:03]} 5... O-O
{[%clk 0:02:57.9]} 6. Be2 {[%clk 0:03:03.6]} 6... e5 {[%clk 0:02:57.6]} 7. Be3
{[%clk 0:03:03.9]} 7... exd4 {[%clk 0:02:56.6]} 8. Nxd4 {[%clk 0:03:04.8]} 8...
Re8 {[%clk 0:02:56.2]} 9. f3 {[%clk 0:03:03.4]} 9... c6 {[%clk 0:02:55.8]} 10.
O-O {[%clk 0:03:01.5]} 10... d5 {[%clk 0:02:55.6]} 11. Bg5 {[%clk 0:02:33.7]}
11... Qb6 {[%clk 0:02:42.4]} 12. Be3 {[%clk 0:02:15.7]} 12... Qxb2 {[%clk
0:02:22.3]} 13. Rc1 {[%clk 0:02:01]} 13... dxe4 {[%clk 0:02:19.5]} 14. fxe4
{[%clk 0:01:53.2]} 14... Nxe4 {[%clk 0:02:06.5]} 15. Na4 {[%clk 0:00:50.4]}
15... Qa3 {[%clk 0:02:01.2]} 16. Qb3 {[%clk 0:00:05.3]} 16... Qd6 {[%clk
0:01:54.2]} 17. Nf3 {[%clk 0:00:03.9]} 17... b5 {[%clk 0:01:26.2]} 18. c5 {[%clk
0:00:02.4]} 18... bxa4 {[%clk 0:01:21.5]} 0-1